fUST/lending_fUST_20260429
["ID","MTS","AMOUNT","RATE_DAILY","PERIOD"]
[421335004,1777457441000,-151.0,0.00016438,2]
[421335006,1777457441000,-151.0,0.00016438,2]
[421335008,1777457441000,-151.0,0.00016438,2]
[421335009,1777457441000,-151.0,0.00016438,2]
[421335010,1777457441000,-151.0,0.00016438,2]
[421335005,1777457441000,-208.414491,0.00016438,2]
[421335007,1777457441000,-151.0,0.00016438,2]
[421335016,1777457441000,-151.0,0.00016438,2]
[421335020,1777457441000,-151.0,0.00016438,2]
[421335021,1777457441000,-151.0,0.00016438,2]
[421335019,1777457441000,-151.0,0.00016438,2]
[421335028,1777457441000,-169.326252,0.00016438,2]
[421335017,1777457441000,-151.0,0.00016438,2]
[421335018,1777457441000,-151.0,0.00016438,2]
[421335029,1777457441000,-169.326252,0.00016438,2]
[421335012,1777457441000,-151.0,0.00016438,2]
[421335015,1777457441000,-151.0,0.00016438,2]
[421335013,1777457441000,-266.283014,0.00016438,2]
[421335014,1777457441000,-151.0,0.00016438,2]
[421335011,1777457441000,-151.0,0.00016438,2]
[421335105,1777457442000,-518.165633,0.00016438,2]
[421335103,1777457442000,-518.165641,0.00016438,2]
[421335098,1777457442000,-518.165641,0.00016438,2]
[421335093,1777457442000,-518.165641,0.00016438,2]
[421335096,1777457442000,-518.165641,0.00016438,2]
[421335097,1777457442000,-518.165641,0.00016438,2]
[421335087,1777457442000,-518.165641,0.00016438,2]
[421335095,1777457442000,-518.165641,0.00016438,2]
[421335092,1777457442000,-518.165641,0.00016438,2]
[421335086,1777457442000,-518.165641,0.00016438,2]
[421335089,1777457442000,-518.165641,0.00016438,2]
[421335104,1777457442000,-518.165641,0.00016438,2]
[421335094,1777457442000,-518.165641,0.00016438,2]
[421335099,1777457442000,-518.165641,0.00016438,2]
[421335116,1777457442000,-234.056952,0.00016438,2]
[421335101,1777457442000,-518.165641,0.00016438,2]
[421335100,1777457442000,-518.165641,0.00016438,2]
[421335106,1777457442000,-151.0,0.00016438,2]
[421335108,1777457442000,-151.0,0.00016438,2]
[421335111,1777457442000,-193.0766,0.00016438,2]
[421335110,1777457442000,-151.0,0.00016438,2]
[421335112,1777457442000,-234.056952,0.00016438,2]
[421335114,1777457442000,-234.056952,0.00016438,2]
[421335107,1777457442000,-151.0,0.00016438,2]
[421335109,1777457442000,-151.0,0.00016438,2]
[421335113,1777457442000,-234.056952,0.00016438,2]
[421335118,1777457442000,-234.056952,0.00016438,2]
[421335115,1777457442000,-234.056952,0.00016438,2]
[421335085,1777457442000,-151.11412,0.00016438,2]
[421335102,1777457442000,-518.165641,0.00016438,2]
[421335088,1777457442000,-518.165641,0.00016438,2]
[421335058,1777457442000,-213.260504,0.00016438,2]
[421335081,1777457442000,-151.0,0.00016438,2]
[421335117,1777457442000,-234.056952,0.00016438,2]
[421335055,1777457442000,-213.260504,0.00016438,2]
[421335057,1777457442000,-213.260504,0.00016438,2]
[421335059,1777457442000,-213.260504,0.00016438,2]
[421335056,1777457442000,-213.260504,0.00016438,2]
[421335061,1777457442000,-151.0,0.00016438,2]
[421335060,1777457442000,-213.260504,0.00016438,2]
[421335062,1777457442000,-213.260504,0.00016438,2]
[421335066,1777457442000,-213.260504,0.00016438,2]
[421335064,1777457442000,-213.260504,0.00016438,2]
[421335063,1777457442000,-151.292454,0.00016438,2]
[421335065,1777457442000,-213.260504,0.00016438,2]
[421335067,1777457442000,-213.260504,0.00016438,2]
[421335070,1777457442000,-151.0,0.00016438,2]
[421335072,1777457442000,-151.0,0.00016438,2]
[421335076,1777457442000,-214.01345,0.00016438,2]
[421335073,1777457442000,-151.0,0.00016438,2]
[421335071,1777457442000,-151.0,0.00016438,2]
[421335075,1777457442000,-151.0,0.00016438,2]
[421335074,1777457442000,-151.0,0.00016438,2]
[421335068,1777457442000,-213.260504,0.00016438,2]
[421335077,1777457442000,-151.0,0.00016438,2]
[421335078,1777457442000,-151.0,0.00016438,2]
[421335079,1777457442000,-151.0,0.00016438,2]
[421335083,1777457442000,-208.859499,0.00016438,2]
[421335084,1777457442000,-151.0,0.00016438,2]
[421335091,1777457442000,-518.165641,0.00016438,2]
[421335082,1777457442000,-151.0,0.00016438,2]
[421335080,1777457442000,-151.0,0.00016438,2]
[421335090,1777457442000,-518.165641,0.00016438,2]
[421335119,1777457442000,-234.056952,0.00016438,2]
[421335069,1777457442000,-213.260498,0.00016438,2]
[421335123,1777457442000,-234.056952,0.00016438,2]
[421335154,1777457442000,-405.94986,0.00016438,2]
[421335155,1777457442000,-405.94986,0.00016438,2]
[421335152,1777457442000,-405.94986,0.00016438,2]
[421335162,1777457442000,-231.164416,0.00016438,2]
[421335159,1777457442000,-405.94986,0.00016438,2]
[421335161,1777457442000,-405.94986,0.00016438,2]
[421335160,1777457442000,-231.164416,0.00016438,2]
[421335171,1777457442000,-405.94986,0.00016438,2]
[421335172,1777457442000,-231.164416,0.00016438,2]
[421335164,1777457442000,-231.164416,0.00016438,2]
[421335165,1777457442000,-405.94986,0.00016438,2]
[421335166,1777457442000,-231.164416,0.00016438,2]
[421335170,1777457442000,-231.164416,0.00016438,2]
[421335167,1777457442000,-405.94986,0.00016438,2]
[421335156,1777457442000,-405.94986,0.00016438,2]
[421335163,1777457442000,-405.94986,0.00016438,2]
[421335181,1777457442000,-231.164416,0.00016438,2]
[421335169,1777457442000,-405.94986,0.00016438,2]
[421335173,1777457442000,-405.94986,0.00016438,2]
[421335176,1777457442000,-231.164416,0.00016438,2]
[421335179,1777457442000,-231.164416,0.00016438,2]
[421335177,1777457442000,-405.949867,0.00016438,2]
[421335175,1777457442000,-405.94986,0.00016438,2]
[421335185,1777457442000,-231.164416,0.00016438,2]
[421335180,1777457442000,-231.164416,0.00016438,2]
[421335178,1777457442000,-231.164416,0.00016438,2]
[421335183,1777457442000,-231.164416,0.00016438,2]
[421335174,1777457442000,-231.164416,0.00016438,2]
[421335182,1777457442000,-231.164416,0.00016438,2]
[421335122,1777457442000,-234.056952,0.00016438,2]
[421335168,1777457442000,-231.164416,0.00016438,2]
[421335151,1777457442000,-405.94986,0.00016438,2]
[421335184,1777457442000,-231.164416,0.00016438,2]
[421335147,1777457442000,-151.0,0.00016438,2]
[421335149,1777457442000,-405.94986,0.00016438,2]
[421335121,1777457442000,-234.056952,0.00016438,2]
[421335120,1777457442000,-234.056952,0.00016438,2]
[421335131,1777457442000,-234.05695,0.00016438,2]
[421335125,1777457442000,-234.056952,0.00016438,2]
[421335130,1777457442000,-234.056952,0.00016438,2]
[421335129,1777457442000,-234.056952,0.00016438,2]
[421335128,1777457442000,-234.056952,0.00016438,2]
[421335126,1777457442000,-234.056952,0.00016438,2]
[421335127,1777457442000,-234.056952,0.00016438,2]
[421335133,1777457442000,-151.0,0.00016438,2]
[421335144,1777457442000,-151.0,0.00016438,2]
[421335143,1777457442000,-151.0,0.00016438,2]
[421335145,1777457442000,-151.0,0.00016438,2]
[421335134,1777457442000,-151.0,0.00016438,2]
[421335124,1777457442000,-234.056952,0.00016438,2]
[421335136,1777457442000,-151.0,0.00016438,2]
[421335132,1777457442000,-151.0,0.00016438,2]
[421335150,1777457442000,-405.94986,0.00016438,2]
[421335158,1777457442000,-405.94986,0.00016438,2]
[421335148,1777457442000,-199.241777,0.00016438,2]
[421335146,1777457442000,-151.0,0.00016438,2]
[421335141,1777457442000,-151.0,0.00016438,2]
[421335157,1777457442000,-405.94986,0.00016438,2]
[421335153,1777457442000,-405.94986,0.00016438,2]
[421335135,1777457442000,-151.0,0.00016438,2]
[421335139,1777457442000,-151.0,0.00016438,2]
[421335142,1777457442000,-250.875046,0.00016438,2]
[421335138,1777457442000,-151.0,0.00016438,2]
[421335140,1777457442000,-151.0,0.00016438,2]
[421335137,1777457442000,-151.0,0.00016438,2]
[421335231,1777457443000,-525.451867,0.00016438,2]
[421335230,1777457443000,-525.451867,0.00016438,2]
[421335228,1777457443000,-298.181139,0.00016438,2]
[421335224,1777457443000,-151.0,0.00016438,2]
[421335222,1777457443000,-151.0,0.00016438,2]
[421335223,1777457443000,-151.0,0.00016438,2]
[421335227,1777457443000,-151.0,0.00016438,2]
[421335234,1777457443000,-525.451867,0.00016438,2]
[421335226,1777457443000,-151.0,0.00016438,2]
[421335229,1777457443000,-525.451867,0.00016438,2]
[421335225,1777457443000,-151.0,0.00016438,2]
[421335240,1777457443000,-525.451867,0.00016438,2]
[421335235,1777457443000,-525.451867,0.00016438,2]
[421335233,1777457443000,-525.451867,0.00016438,2]
[421335237,1777457443000,-525.451867,0.00016438,2]
[421335236,1777457443000,-525.451867,0.00016438,2]
[421335238,1777457443000,-525.451867,0.00016438,2]
[421335239,1777457443000,-525.451867,0.00016438,2]
[421335242,1777457443000,-161.756472,0.00016438,2]
[421335241,1777457443000,-525.451867,0.00016438,2]
[421335252,1777457443000,-400.298143,0.00016438,2]
[421335221,1777457443000,-151.0,0.00016438,2]
[421335245,1777457443000,-525.451867,0.00016438,2]
[421335232,1777457443000,-151.0,0.00016438,2]
[421335219,1777457443000,-151.0,0.00016438,2]
[421335197,1777457443000,-1824.996871,0.00016438,2]
[421335208,1777457443000,-1824.996871,0.00016438,2]
[421335244,1777457443000,-525.451867,0.00016438,2]
[421335186,1777457443000,-231.164416,0.00016438,2]
[421335188,1777457443000,-231.164416,0.00016438,2]
[421335191,1777457443000,-151.0,0.00016438,2]
[421335190,1777457443000,-231.164409,0.00016438,2]
[421335193,1777457443000,-1824.996871,0.00016438,2]
[421335192,1777457443000,-183.32438,0.00016438,2]
[421335194,1777457443000,-1824.996871,0.00016438,2]
[421335195,1777457443000,-1824.996871,0.00016438,2]
[421335199,1777457443000,-1824.996871,0.00016438,2]
[421335198,1777457443000,-1824.996871,0.00016438,2]
[421335220,1777457443000,-151.0,0.00016438,2]
[421335196,1777457443000,-1824.996871,0.00016438,2]
[421335203,1777457443000,-1824.996871,0.00016438,2]
[421335205,1777457443000,-1824.996871,0.00016438,2]
[421335216,1777457443000,-1824.996871,0.00016438,2]
[421335218,1777457443000,-1824.99687739,0.00016438,2]
[421335209,1777457443000,-1824.996871,0.00016438,2]
[421335207,1777457443000,-1824.996871,0.00016438,2]
[421335210,1777457443000,-1824.996871,0.00016438,2]
[421335214,1777457443000,-1824.996871,0.00016438,2]
[421335211,1777457443000,-1824.996871,0.00016438,2]
[421335212,1777457443000,-1824.996871,0.00016438,2]
[421335213,1777457443000,-1824.996871,0.00016438,2]
[421335202,1777457443000,-1824.996871,0.00016438,2]
[421335243,1777457443000,-525.451867,0.00016438,2]
[421335248,1777457443000,-525.451867,0.00016438,2]
[421335291,1777457443000,-680.538436,0.00016438,2]
[421335279,1777457443000,-680.538436,0.00016438,2]
[421335282,1777457443000,-680.538436,0.00016438,2]
[421335281,1777457443000,-680.538436,0.00016438,2]
[421335285,1777457443000,-680.538436,0.00016438,2]
[421335283,1777457443000,-680.538436,0.00016438,2]
[421335286,1777457443000,-680.538436,0.00016438,2]
[421335289,1777457443000,-680.538436,0.00016438,2]
[421335284,1777457443000,-680.538436,0.00016438,2]
[421335280,1777457443000,-680.538436,0.00016438,2]
[421335290,1777457443000,-680.538436,0.00016438,2]
[421335292,1777457443000,-680.538436,0.00016438,2]
[421335293,1777457443000,-680.538436,0.00016438,2]
[421335295,1777457443000,-151.0,0.00016438,2]
[421335298,1777457443000,-151.0,0.00016438,2]
[421335299,1777457443000,-151.0,0.00016438,2]
[421335294,1777457443000,-680.538436,0.00016438,2]
[421335302,1777457443000,-151.0,0.00016438,2]
[421335297,1777457443000,-151.0,0.00016438,2]
[421335300,1777457443000,-151.0,0.00016438,2]
[421335301,1777457443000,-151.0,0.00016438,2]
[421335303,1777457443000,-151.0,0.00016438,2]
[421335296,1777457443000,-151.0,0.00016438,2]
[421335246,1777457443000,-525.451867,0.00016438,2]
[421335273,1777457443000,-400.298143,0.00016438,2]
[421335276,1777457443000,-680.538436,0.00016438,2]
[421335287,1777457443000,-680.538436,0.00016438,2]
[421335274,1777457443000,-680.538436,0.00016438,2]
[421335249,1777457443000,-525.451867,0.00016438,2]
[421335247,1777457443000,-525.451867,0.00016438,2]
[421335251,1777457443000,-400.298143,0.00016438,2]
[421335250,1777457443000,-525.451864,0.00016438,2]
[421335253,1777457443000,-400.298143,0.00016438,2]
[421335257,1777457443000,-400.298143,0.00016438,2]
[421335256,1777457443000,-400.298143,0.00016438,2]
[421335275,1777457443000,-680.538436,0.00016438,2]
[421335258,1777457443000,-400.298143,0.00016438,2]
[421335259,1777457443000,-400.298143,0.00016438,2]
[421335263,1777457443000,-400.298143,0.00016438,2]
[421335265,1777457443000,-400.298143,0.00016438,2]
[421335255,1777457443000,-400.298143,0.00016438,2]
[421335268,1777457443000,-400.298143,0.00016438,2]
[421335260,1777457443000,-400.298143,0.00016438,2]
[421335271,1777457443000,-400.298143,0.00016438,2]
[421335278,1777457443000,-680.538436,0.00016438,2]
[421335270,1777457443000,-400.298143,0.00016438,2]
[421335277,1777457443000,-680.538436,0.00016438,2]
[421335266,1777457443000,-400.298143,0.00016438,2]
[421335262,1777457443000,-400.298143,0.00016438,2]
[421335254,1777457443000,-400.298143,0.00016438,2]
[421335261,1777457443000,-400.298143,0.00016438,2]
[421335264,1777457443000,-155.711547,0.00016438,2]
[421335267,1777457443000,-400.298143,0.00016438,2]
[421335350,1777457444000,-151.0,0.00016438,2]
[421335357,1777457444000,-1449.393999,0.00016438,2]
[421335349,1777457444000,-353.572879,0.00016438,2]
[421335347,1777457444000,-353.572883,0.00016438,2]
[421335342,1777457444000,-353.572883,0.00016438,2]
[421335341,1777457444000,-353.572883,0.00016438,2]
[421335334,1777457444000,-353.572883,0.00016438,2]
[421335336,1777457444000,-353.572883,0.00016438,2]
[421335340,1777457444000,-353.572883,0.00016438,2]
[421335332,1777457444000,-353.572883,0.00016438,2]
[421335335,1777457444000,-353.572883,0.00016438,2]
[421335346,1777457444000,-353.572883,0.00016438,2]
[421335339,1777457444000,-353.572883,0.00016438,2]
[421335348,1777457444000,-353.572883,0.00016438,2]
[421335369,1777457444000,-160.50966609,0.00016473,2]
[421335356,1777457444000,-1449.393999,0.00016438,2]
[421335351,1777457444000,-1449.393999,0.00016438,2]
[421335353,1777457444000,-1449.393999,0.00016438,2]
[421335352,1777457444000,-1449.393999,0.00016438,2]
[421335355,1777457444000,-1449.393999,0.00016438,2]
[421335354,1777457444000,-1449.393999,0.00016438,2]
[421335368,1777457444000,-500.0,0.00016473,2]
[421335361,1777457444000,-1449.393999,0.00016438,2]
[421335360,1777457444000,-1449.393999,0.00016438,2]
[421335370,1777457444000,-500.0,0.00016473,2]
[421335371,1777457444000,-500.21251682,0.00016473,2]
[421335364,1777457444000,-263.047678,0.00016438,2]
[421335338,1777457444000,-353.572883,0.00016438,2]
[421335358,1777457444000,-1449.393999,0.00016438,2]
[421335337,1777457444000,-353.572883,0.00016438,2]
[421335308,1777457444000,-151.0,0.00016438,2]
[421335343,1777457444000,-353.572883,0.00016438,2]
[421335304,1777457444000,-151.0,0.00016438,2]
[421335305,1777457444000,-282.583737,0.00016438,2]
[421335306,1777457444000,-151.0,0.00016438,2]
[421335307,1777457444000,-282.583737,0.00016438,2]
[421335309,1777457444000,-282.583737,0.00016438,2]
[421335315,1777457444000,-209.010532,0.00016438,2]
[421335312,1777457444000,-151.0,0.00016438,2]
[421335311,1777457444000,-282.583737,0.00016438,2]
[421335313,1777457444000,-282.583737,0.00016438,2]
[421335317,1777457444000,-282.583737,0.00016438,2]
[421335314,1777457444000,-282.583737,0.00016438,2]
[421335310,1777457444000,-151.0,0.00016438,2]
[421335318,1777457444000,-282.583737,0.00016438,2]
[421335316,1777457444000,-282.583737,0.00016438,2]
[421335330,1777457444000,-353.572883,0.00016438,2]
[421335329,1777457444000,-282.583742,0.00016438,2]
[421335326,1777457444000,-282.583737,0.00016438,2]
[421335331,1777457444000,-353.572883,0.00016438,2]
[421335325,1777457444000,-282.583737,0.00016438,2]
[421335324,1777457444000,-282.583737,0.00016438,2]
[421335320,1777457444000,-282.583737,0.00016438,2]
[421335321,1777457444000,-282.583737,0.00016438,2]
[421335319,1777457444000,-282.583737,0.00016438,2]
[421335327,1777457444000,-282.583737,0.00016438,2]
[421335323,1777457444000,-282.583737,0.00016438,2]
[421335322,1777457444000,-282.583737,0.00016438,2]
[421335328,1777457444000,-282.583737,0.00016438,2]
[421335333,1777457444000,-353.572883,0.00016438,2]
[421335344,1777457444000,-353.572883,0.00016438,2]
[421335345,1777457444000,-353.572883,0.00016438,2]
[421335367,1777457444000,-267.90783046,0.00016473,2]
[421335365,1777457444000,-500.4211788,0.00016473,2]
[421335363,1777457444000,-1449.393999,0.00016438,2]
[421335410,1777457444000,-461.0610838,0.000171,2]
[421335403,1777457444000,-1000.0,0.00017021,2]
[421335408,1777457444000,-186.63673365,0.00017096,3]
[421335405,1777457444000,-1000.0,0.00017021,2]
[421335404,1777457444000,-1000.0,0.00017021,2]
[421335407,1777457444000,-286.07514247,0.00017051,60]
[421335402,1777457444000,-1000.0,0.00017021,2]
[421335406,1777457444000,-1000.0,0.00017021,2]
[421335411,1777457444000,-163.42272884,0.000171,2]
[421335413,1777457444000,-265.0,0.00017148,2]
[421335420,1777457444000,-151.0,0.000174,2]
[421335414,1777457444000,-2000.0,0.00017172,7]
[421335412,1777457444000,-5888.0,0.00017123,2]
[421335421,1777457444000,-151.0,0.000174,2]
[421335422,1777457444000,-396.4653533,0.00017424,22]
[421335415,1777457444000,-160.0,0.00017191,2]
[421335416,1777457444000,-160.0,0.00017191,2]
[421335417,1777457444000,-206.08357826,0.000173,2]
[421335419,1777457444000,-163.42272884,0.000173,2]
[421335418,1777457444000,-461.0610838,0.000173,2]
[421335423,1777457444000,-2000.0,0.00017486,7]
[421335425,1777457444000,-461.0610838,0.000175,2]
[421335427,1777457444000,-1500.0,0.00017568,2]
[421335426,1777457444000,-163.42272884,0.000175,2]
[421335429,1777457444000,-1500.0,0.00017568,2]
[421335428,1777457444000,-1500.0,0.00017568,2]
[421335431,1777457444000,-1500.0,0.00017568,2]
[421335430,1777457444000,-1500.0,0.00017568,2]
[421335362,1777457444000,-1449.393999,0.00016438,2]
[421335401,1777457444000,-1000.0,0.00017021,2]
[421335400,1777457444000,-500.49330083,0.00017021,2]
[421335424,1777457444000,-206.08357826,0.000175,2]
[421335409,1777457444000,-206.08357826,0.000171,2]
[421335398,1777457444000,-1388.75005578,0.00016985,2]
[421335359,1777457444000,-1449.393999,0.00016438,2]
[421335366,1777457444000,-500.0,0.00016473,2]
[421335372,1777457444000,-500.42085335,0.00016473,2]
[421335378,1777457444000,-506.346475,0.00016473,2]
[421335373,1777457444000,-500.0,0.00016473,2]
[421335379,1777457444000,-272.18645692,0.00016473,2]
[421335374,1777457444000,-187.97582089,0.00016473,2]
[421335382,1777457444000,-533.53166428,0.00016473,2]
[421335375,1777457444000,-500.0,0.00016473,2]
[421335381,1777457444000,-500.0,0.00016473,2]
[421335376,1777457444000,-161.16967845,0.00016473,2]
[421335383,1777457444000,-500.0,0.00016473,2]
[421335380,1777457444000,-500.0,0.00016473,2]
[421335377,1777457444000,-532.19079429,0.00016473,2]
[421335386,1777457444000,-536.98237164,0.00016473,2]
[421335384,1777457444000,-500.0,0.00016473,2]
[421335393,1777457444000,-396.4653533,0.00016576,19]
[421335391,1777457444000,-2000.0,0.00016544,7]
[421335392,1777457444000,-375.0,0.00016553,2]
[421335389,1777457444000,-163.93957618,0.00016473,2]
[421335387,1777457444000,-500.0,0.00016473,2]
[421335390,1777457444000,-375.0,0.00016526,2]
[421335397,1777457444000,-276.253772,0.00016982,2]
[421335395,1777457444000,-5888.0,0.00016703,2]
[421335388,1777457444000,-500.0,0.00016473,2]
[421335396,1777457444000,-2000.0,0.00016858,7]
[421335385,1777457444000,-500.0,0.00016473,2]
[421335399,1777457444000,-396.4653533,0.00017,20]
[421335394,1777457444000,-151.0,0.000166,2]
[421335473,1777457445000,-589.70670292,0.00018,3]
[421335472,1777457445000,-10000.0,0.00018,2]
[421335461,1777457445000,-500.0,0.0001786,2]
[421335469,1777457445000,-500.0,0.0001786,2]
[421335462,1777457445000,-500.0,0.0001786,2]
[421335465,1777457445000,-500.0,0.0001786,2]
[421335468,1777457445000,-500.0,0.0001786,2]
[421335463,1777457445000,-500.0,0.0001786,2]
[421335471,1777457445000,-178.61,0.00017918,3]
[421335467,1777457445000,-500.0,0.0001786,2]
[421335464,1777457445000,-500.0,0.0001786,2]
[421335478,1777457445000,-172.34051402,0.00018,2]
[421335466,1777457445000,-500.0,0.0001786,2]
[421335474,1777457445000,-198.61097179,0.00018,2]
[421335477,1777457445000,-180.36491174,0.00018,2]
[421335476,1777457445000,-198.12197241,0.00018,2]
[421335475,1777457445000,-181.58983109,0.00018,2]
[421335479,1777457445000,-281.83424943,0.00018,2]
[421335480,1777457445000,-199.48141308,0.00018,2]
[421335481,1777457445000,-1906.0,0.00018015,2]
[421335483,1777457445000,-153.0,0.0001805,2]
[421335452,1777457445000,-1000.0,0.000178,2]
[421335482,1777457445000,-1443.43466941,0.00018032,2]
[421335470,1777457445000,-154.53220568,0.00017869,2]
[421335459,1777457445000,-500.0,0.0001786,2]
[421335444,1777457445000,-478.25861398,0.00017667,2]
[421335454,1777457445000,-461.0610838,0.000178,2]
[421335484,1777457445000,-168.0,0.0001805,2]
[421335432,1777457445000,-1500.0,0.00017568,2]
[421335435,1777457445000,-150.0,0.00017619,2]
[421335434,1777457445000,-150.0,0.00017619,2]
[421335433,1777457445000,-175.36,0.00017606,3]
[421335437,1777457445000,-500.0,0.00017622,2]
[421335446,1777457445000,-220.27654214,0.00017667,2]
[421335445,1777457445000,-500.0,0.00017667,2]
[421335447,1777457445000,-206.08357826,0.000177,2]
[421335438,1777457445000,-500.0,0.00017622,2]
[421335436,1777457445000,-500.0,0.00017622,2]
[421335440,1777457445000,-500.0,0.00017667,2]
[421335439,1777457445000,-500.0,0.00017622,2]
[421335441,1777457445000,-500.0,0.00017667,2]
[421335443,1777457445000,-500.0,0.00017667,2]
[421335442,1777457445000,-500.0,0.00017667,2]
[421335448,1777457445000,-461.0610838,0.000177,2]
[421335456,1777457445000,-1906.0,0.00017817,2]
[421335455,1777457445000,-2000.0,0.00017801,7]
[421335458,1777457445000,-500.0,0.0001786,2]
[421335453,1777457445000,-206.08357826,0.000178,2]
[421335450,1777457445000,-500.0,0.0001775,2]
[421335457,1777457445000,-396.4653533,0.00017849,23]
[421335451,1777457445000,-1000.0,0.000178,2]
[421335449,1777457445000,-163.42272884,0.000177,2]
[421335460,1777457445000,-500.0,0.0001786,2]
[421335485,1777457445000,-199.0,0.0001805,2]
[421335492,1777457445000,-2000.0,0.00018116,2]
[421335486,1777457445000,-3771.0,0.0001805,2]
[421335513,1777457445000,-181.58983109,0.000184,2]
[421335512,1777457445000,-1000.0,0.00018298,2]
[421335520,1777457445000,-1000.0,0.00018408,2]
[421335521,1777457445000,-1000.0,0.00018408,2]
[421335528,1777457445000,-1671.292941,0.00018493,2]
[421335523,1777457445000,-1000.0,0.00018408,2]
[421335530,1777457445000,-180.64,0.00018563,3]
[421335524,1777457445000,-427.72961684,0.00018408,2]
[421335531,1777457445000,-717.287,0.00018589,2]
[421335519,1777457445000,-1000.0,0.00018408,2]
[421335527,1777457445000,-2000.0,0.00018429,7]
[421335508,1777457445000,-500.42446063,0.00018215,2]
[421335522,1777457445000,-1000.0,0.00018408,2]
[421335525,1777457445000,-1000.0,0.00018408,2]
[421335532,1777457445000,-1906.0,0.00018611,2]
[421335534,1777457445000,-2500.0,0.00018664,2]
[421335540,1777457445000,-858.40354391,0.00018718,2]
[421335539,1777457445000,-396.4653533,0.00018697,26]
[421335533,1777457445000,-2500.0,0.00018664,2]
[421335537,1777457445000,-2500.0,0.00018664,2]
[421335538,1777457445000,-2500.0,0.00018664,2]
[421335536,1777457445000,-1675.53775062,0.00018664,2]
[421335535,1777457445000,-2500.0,0.00018664,2]
[421335487,1777457445000,-2000.0,0.00018115,7]
[421335526,1777457445000,-1906.0,0.00018412,2]
[421335515,1777457445000,-1000.0,0.00018408,2]
[421335529,1777457445000,-181.58983109,0.000185,2]
[421335509,1777457445000,-1000.0,0.00018215,2]
[421335514,1777457445000,-1000.0,0.00018408,2]
[421335489,1777457445000,-2000.0,0.00018116,2]
[421335491,1777457445000,-2000.0,0.00018116,2]
[421335493,1777457445000,-2000.0,0.00018116,2]
[421335490,1777457445000,-2000.0,0.00018116,2]
[421335494,1777457445000,-265.0,0.00018148,2]
[421335495,1777457445000,-1000.0,0.0001817,2]
[421335497,1777457445000,-1000.0,0.0001817,2]
[421335498,1777457445000,-1063.05457605,0.0001817,2]
[421335500,1777457445000,-181.58983109,0.000182,2]
[421335499,1777457445000,-198.61097179,0.000182,2]
[421335496,1777457445000,-631.66837986,0.0001817,2]
[421335488,1777457445000,-2000.0,0.00018116,2]
[421335511,1777457445000,-396.4653533,0.00018273,24]
[421335502,1777457445000,-151.0,0.000182,2]
[421335510,1777457445000,-945.58484107,0.00018223,2]
[421335516,1777457445000,-1000.0,0.00018408,2]
[421335506,1777457445000,-1000.0,0.00018215,2]
[421335518,1777457445000,-1000.0,0.00018408,2]
[421335517,1777457445000,-1000.0,0.00018408,2]
[421335505,1777457445000,-1906.0,0.00018214,2]
[421335503,1777457445000,-151.0,0.000182,2]
[421335504,1777457445000,-179.46,0.00018213,3]
[421335501,1777457445000,-172.34051402,0.000182,2]
[421335507,1777457445000,-500.70960663,0.00018215,2]
[421335580,1777457446000,-621.91058579,0.00018873,2]
[421335583,1777457446000,-500.0,0.00018873,2]
[421335586,1777457446000,-500.0,0.00018873,2]
[421335578,1777457446000,-500.0,0.00018873,2]
[421335579,1777457446000,-500.0,0.00018873,2]